[Event "French-ch U12-U14 2024"]
[Site "Agen"]
[Date "2024.04.21"]
[Round "9.20"]
[White "Spinosi, Aurelien"]
[Black "Auribault, Louis"]
[Result "0-1"]
[ECO "A04"]
[WhiteElo "1942"]
[BlackElo "2137"]
[Annotator "TA"]
[PlyCount "82"]
[EventDate "2024.04.14"]
[EventType "swiss"]
[EventCountry "FRA"]
[SourceTitle "playchess.com"]
[Source "ChessBase"]
[SourceQuality "1"]
[TimeControl "5400+30"]

{[%evp 15,81,-13,19,-15,-6,-30,-35,-58,-31,-27,-14,-39,19,6,18,9,19,0,0,-18,-24,-8,104,109,96,96,89,72,86,77,284,113,119,85,94,97,138,30,179,72,54,-31,24,-175,-44,-48,42,-662,-639,-1359,-1241,-1012,-838,-791,-774,-29991,-1174,-1033,-1004,-952,-907,-856,-652,-711,-629,-29998,-29999,-29999]} 1. e4 {[%emt 0:04:27]} c5 {[%emt 0:00:13]} 2. Nf3 {[%emt 0:00:15]} e6 {[%emt 0:00:06]} 3. d3 {[%emt 0:01:47]} Nc6 {[%emt 0:00:25]} 4. g3 {[%emt 0:00:22]} g6 {[%emt 0:00:44]} 5. Bg2 {[%emt 0:00:24]} Bg7 {[%emt 0:00:20]} 6. O-O {[%emt 0:00:38]} Nge7 {[%emt 0:00:47]} 7. c3 {[%emt 0:03:50]} O-O {[%emt 0:03:33]} 8. Be3 {[%emt 0:08:26]} d6 {[%emt 0:03:48]} 9. Nbd2 {[%emt 0:02:11]} e5 {[%emt 0:07:43]} 10. Qc2 {[%emt 0:04:24]} h6 {[%emt 0:01:00]} 11. Ne1 {[%emt 0:08:27] Black is slightly better.} Be6 {[%emt 0:07:43]} 12. f4 {[%emt 0:03:55]} f5 {[%emt 0:04:50]} 13. Nef3 {[%emt 0:05:36]} Rc8 {[%emt 0:01:46]} ({Black should try} 13... exf4 $15 14. Bxf4 g5 15. exf5 Bxf5 (15... Nxf5 16. Rae1 $15)) 14. Rae1 {[%emt 0:06:32]} Qd7 {[%emt 0:07:58]} 15. fxe5 {[%emt 0:15:24]} Nxe5 {[%emt 0:03:29]} 16. exf5 {[%emt 0:05:49]} Nxf3+ {[%emt 0:12:14]} 17. Bxf3 {[%emt 0:03:56]} Nxf5 {[%emt 0:00:10]} 18. Bf2 {[%emt 0:02:39][%cal Of3b7]} Kh8 {[%emt 0:02:38] [#]} (18... Bxa2 $2 19. b3 Kh8 20. c4 $18 (20. Qxa2 Bxc3 21. Bd5 Ra8 $18)) (18... b6 $11 {remains equal.}) 19. Bxb7 $1 $16 {[%emt 0:08:09][%mdl 512]} Qxb7 {[%emt 0:08:41]} (19... Rce8 20. Bg2) 20. Rxe6 {[%emt 0:00:05]} Qf7 {[%emt 0:00:28]} 21. Re4 {[%emt 0:03:43] Threatens to win with g4.} d5 {[%emt 0:04:53]} 22. Re2 {[%emt 0:01:42] Black must now prevent g4.} Rc6 $2 {[%emt 0:02:40] [#]} (22... h5 $16) 23. Qa4 $2 {[%emt 0:02:03]} (23. g4 $1 $18 {[%cal Rg4f5] is the precise move to win.}) 23... Rf6 {[%emt 0:04:14]} 24. Qd1 {[%emt 0:04:03]} (24. Bxc5 {feels hotter.} Nxg3 25. hxg3 Rxf1+ 26. Kg2) 24... Qc7 {[%emt 0:02:09]} 25. Rfe1 {[%emt 0:01:34]} Qc6 {[%emt 0:02:17]} 26. d4 {[%emt 0:01:27]} (26. g4 $16) 26... c4 {[%emt 0:01:55] [#]} (26... cxd4 $11 {and Black stays safe.} 27. cxd4 Nd6) 27. Nf1 {[%emt 0:00:43]} (27. g4 $1 $18 {[%cal Rg4f5]} Ne7 28. Bh4 (28. Rxe7 Rxf2 29. R1e2 Rxe2 $14)) 27... Nd6 {[%emt 0:00:20]} 28. Ne3 {[%emt 0:01:12]} (28. Be3 $14) 28... h5 {[%emt 0:00:21]} (28... Ne4 $15 29. Ng4 Rf3) 29. Rf1 $2 {[%emt 0:00:34]} (29. Nf1 $11 {and White has nothing to worry.}) 29... Bh6 {[%emt 0:00:20]} ({Black should play} 29... Ne4 $19 {Strongly threatening ...Bh6.} 30. Kg2 Qe6 31. Nxc4 dxc4) 30. Nc2 {[%emt 0:00:22]} Ne4 {[%emt 0:00:14]} (30... Qb7 $15 31. Rfe1 g5 (31... Qxb2 $2 {too greedy.} 32. Nb4 $18) (31... Ne4 32. Be3 $15)) 31. Qe1 $2 {[%emt 0:00:31][%mdl 8192]} (31. Rxe4 $14 dxe4 32. d5) 31... Ng5 $19 {[%emt 0:02:24] And now ...Nf3+ would win.} 32. Kg2 {[%emt 0:00:44]} Qd7 {[%emt 0:00:03]} 33. Re3 {[%emt 0:00:34]} Nh3 {[%emt 0:04:05]} 34. Re2 {[%emt 0:00:30]} Qg4 {[%emt 0:00:11] ( -> ...Nf4+)} 35. Ne3 {[%emt 0:00:23]} Bxe3 {[%emt 0:00:17]} (35... Nf4+ $142 36. Kg1 Nxe2+ 37. Qxe2 Qxe2 38. Nd1 Be3 39. Nxe3 Rxf2 40. Rc1 Qxe3 41. Rf1 Rxb2+ (41... Rxf1+ $2 {leads to mate.} 42. Kg2 Qe6 43. h4 R8f2#) 42. Rf2 Qxf2+ 43. Kh1 Qxh2#) 36. Rxe3 {[%emt 0:00:20]} Rxf2+ {[%emt 0:00:07]} 37. Rxf2 {[%emt 0:00:19]} Rxf2+ {[%emt 0:00:02]} 38. Kh1 {[%emt 0:00:30]} Rf8 {[%emt 0:00:23]} ({Weaker is} 38... Rxb2 39. Re8+ Kh7 40. Qe7+ Kh6 41. Rh8#) 39. Kg2 {[%emt 0:00:44]} Ng5 {[%emt 0:14:29] ...h4 would now be deadly.} 40. Re7 {[%emt 0:00:32] Hoping for Qe5+.} Qf3+ {[%emt 0:00:00]} 41. Kg1 {[%emt 0:00:09]} Nh3# {[%emt 0:00:00] Weighted Error Value: White=0.98/Black=0.71.  Loses game:     	White=2     	Black=1      Missed win:     	White=1     	---        Mistake:       	White=3     	Black=6      Inaccurate:     	White=1     	Black=2      OK:         	White=3     	Black=8      Brilliant:      	White=1     	---} 0-1